[Event "2nd Serbia Open Masters 2022"]
[Site "Novi Sad"]
[Date "2022.06.29"]
[Round "2.31"]
[White "Rohith Krishna S"]
[Black "Arnaudov, G. Petar"]
[Result "0-1"]
[ECO "E16"]
[WhiteElo "2337"]
[BlackElo "2467"]
[Annotator "TA"]
[PlyCount "210"]
[EventDate "2022.06.28"]
[EventType "swiss"]
[EventCountry "SRB"]
[SourceTitle "playchess.com"]
[Source "ChessBase"]
[SourceQuality "1"]
[TimeControl "40/5400+30:900+30"]

{[%evp 16,209,28,13,20,12,24,19,27,20,33,12,35,18,13,0,0,0,9,0,13,0,-3,-16,0,0,0,-12,0,0,0,0,0,0,0,-32,-33,-28,-39,-38,-12,-29,-42,-69,-66,-91,-91,-99,-99,-99,-95,-95,-91,-117,-120,-125,-124,-125,-125,-115,-91,-91,-99,-99,-91,-91,-91,-91,-91,-91,0,-99,0,-91,-91,-91,-91,-91,-91,-91,-91,-127,-127,-127,-127,-152,-152,-152,-152,-152,-152,-152,-152,-152,-152,-145,-138,-319,-75,-82,-60,-72,-68,-372,-86,-86,-60,-60,-60,-65,-68,-68,-68,-381,-375,-356,-341,-338,-313,-294,-77,-65,-67,-77,-77,-362,-65,-72,-47,-113,-18,-25,-6,-6,-13,-13,-13,-13,-13,-13,0,0,0,0,0,-13,0,0,0,-13,-13,-13,-13,-13,-13,-26,-13,-274,-225,-402,-281,-448,-528,-270,-58,-528,-234,-1075,-976,-1509,-1391,-29962,-11810,-29957,-12800,-29985,-29986,-29986,-29987,-29990,-29984,-29991,-29992,-29992,-29993,-29995,-29996,-29996,-29997,-29997,-29998,-29998,-29998,-29998,-29999,-29999]} 1. d4 {[%emt 0:00:17]} Nf6 {[%emt 0:05:31]} 2. c4 {[%emt 0:00:10]} e6 {[%emt 0:00:06]} 3. Nf3 {[%emt 0:00:10]} Bb4+ {[%emt 0:00:34]} 4. Bd2 {[%emt 0:00:18]} Qe7 {[%emt 0:00:25]} 5. Nc3 {[%emt 0:03:04]} b6 {[%emt 0:02:37]} 6. g3 {[%emt 0:00:30]} Bb7 {[%emt 0:00:27]} 7. Bg2 {[%emt 0:00:09]} O-O {[%emt 0:01:17]} 8. O-O {[%emt 0:00:32]} Bxc3 {[%emt 0:04:13]} 9. Bxc3 {[%emt 0:00:19]} Be4 {[%emt 0:00:09] [#] E16: Queen's Indian: 4 g3 Bb7 5 Bg2 Bb4+.} 10. e3 $146 {[%emt 0:08:50]} ({Predecessor:} 10. Rc1 d6 11. b4 Nbd7 12. Qb3 c6 13. a4 a6 14. Bd2 Rfc8 15. Bf4 h6 16. Rfd1 Nh5 17. Be3 Nhf6 18. Bf4 Nh5 19. Be3 Nhf6 20. Bf4 Nh5 {½-½ (20) Wang,L (2383)-Antonio,R (2572) Olongapo City 2010}) 10... a5 {[%emt 0:00:56]} 11. Qe2 {[%emt 0:03:54]} d6 {[%emt 0:00:56] The position is equal.} 12. Bh3 {[%emt 0:03:44]} c5 {[%emt 0:02:37]} 13. Nd2 {[%emt 0:02:08]} Bb7 {[%emt 0:00:48]} 14. Rad1 {[%emt 0:14:56]} cxd4 {[%emt 0:02:51]} 15. exd4 {[%emt 0:04:11][%cal Od4d5]} d5 {[%emt 0:00:22]} 16. b3 {[%emt 0:05:06]} a4 {[%emt 0:05:44]} 17. Rfe1 {[%emt 0:02:24]} Rc8 {[%emt 0:01:30]} 18. Qd3 {[%emt 0:02:44]} Nc6 {[%emt 0:03:10][%cal Bb8c6,Bc6b4,Bb4a2][%mdl 32]} 19. Qb1 {[%emt 0:05:15]} axb3 {[%emt 0:02:23]} 20. axb3 {[%emt 0:04:36]} Qa3 {[%emt 0:12:21]} 21. Re3 {[%emt 0:03:11]} Nb4 {[%emt 0:07:41]} 22. Bg2 {[%emt 0:06:44]} Na2 {[%emt 0:02:31]} 23. Bb2 {[%emt 0:00:19]} Qe7 {[%emt 0:00:59]} 24. h3 {[%emt 0:03:07]} h6 {[%emt 0:00:12]} 25. f4 {[%emt 0:00:58]} dxc4 {[%emt 0:09:26]} 26. Bxb7 {[%emt 0:00:37]} Qxb7 {[%emt 0:00:09]} 27. bxc4 {[%emt 0:00:06]} b5 $1 {[%emt 0:00:25]} 28. Rb3 {[%emt 0:05:19]} Qd7 {[%emt 0:01:57]} (28... b4 29. Qd3 $14) 29. cxb5 {[%emt 0:02:28] [#]} Rc3 $1 {[%emt 0:09:01][%mdl 64] Decoy} 30. Rxc3 {[%emt 0:17:48]} (30. b6 Qxd4+) 30... Qxd4+ {[%emt 0:00:12]} 31. Kg2 {[%emt 0:00:31]} Nxc3 {[%emt 0:00:39]} 32. Bxc3 {[%emt 0:00:03]} Qxc3 {[%emt 0:00:08]} 33. Qb3 {[%emt 0:00:04]} Qc5 {[%emt 0:02:14] White must now prevent ...Ra3. Black is more active.} 34. Qc4 {[%emt 0:01:07]} Qd6 {[%emt 0:07:09]} 35. Qc6 {[%emt 0:00:07]} Qd8 {[%emt 0:01:58]} 36. b6 {[%emt 0:01:59]} Ra2 {[%emt 0:03:03]} 37. b7 {[%emt 0:00:05] Threatens to win with Qc8.} Rxd2+ {[%emt 0:00:16]} 38. Rxd2 {[%emt 0:00:04]} Qxd2+ {[%emt 0:00:06]} 39. Kf3 {[%emt 0:00:45]} Qd3+ {[%emt 0:02:20]} 40. Kg2 {[%emt 0:00:00]} Qe2+ {[%emt 0:00:00]} 41. Kg1 {[%emt 0:00:16]} Qd1+ {[%emt 0:02:54]} 42. Kg2 {[%emt 0:00:37]} Qd2+ {[%emt 0:00:28]} 43. Kf3 $1 {[%emt 0:00:07]} Qd3+ {[%emt 0:00:18]} 44. Kg2 $1 {[%emt 0:00:09]} Nd7 {[%emt 0:00:44]} 45. Qxd7 {[%emt 0:00:09][%mdl 64] Remove Defender} Qxd7 {[%emt 0:00:05]} 46. b8=Q+ $17 {[%emt 0:00:07][%mdl 4096] Endgame KQ-KQ} Kh7 {[%emt 0:00:03]} 47. Qb1+ {[%emt 0:00:07]} g6 {[%emt 0:00:10]} 48. Qb2 {[%emt 0:00:12] Prevents Qd2+.} Qd5+ {[%emt 0:00:29]} 49. Kh2 {[%emt 0:00:06]} g5 {[%emt 0:01:03]} 50. Qf6 {[%emt 0:03:42]} Qd2+ {[%emt 0:00:49]} 51. Kg1 {[%emt 0:00:08]} Qe1+ {[%emt 0:00:17]} 52. Kg2 {[%emt 0:00:05]} Qe2+ {[%emt 0:00:24]} 53. Kg1 {[%emt 0:00:19]} Qe3+ {[%emt 0:00:16]} 54. Kg2 {[%emt 0:00:06]} Qe4+ $1 {[%emt 0:00:03]} 55. Kf2 {[%emt 0:00:07]} Qg6 {[%emt 0:00:06]} 56. Qd4 {[%emt 0:02:47]} (56. Qe5 $17 {only move.}) 56... gxf4 $2 {[%emt 0:00:26]} (56... Qf5 $19 57. h4 gxh4 58. gxh4 e5) 57. gxf4 {[%emt 0:00:06]} h5 {[%emt 0:00:32]} 58. Qd8 {[%emt 0:00:15]} Kg7 {[%emt 0:00:32] And now ...Qf6 would win.} 59. Kf3 $2 {[%emt 0:01:25][%mdl 8192]} (59. Qd4+ $15 Qf6 60. Qe3) 59... Qf5 $2 {[%emt 0:02:32]} (59... Qg1 $1 $19 {[%cal Rg1h1] has better winning chances. Strongly threatening ...Qh1+.} 60. Qh4 f6) 60. Kg3 {[%emt 0:00:13]} Qf6 {[%emt 0:00:11] Prevents Qd4.} 61. Qa5 {[%emt 0:00:44]} Kg6 {[%emt 0:01:21][%cal Oe6e5]} 62. Qc5 {[%emt 0:07:07] Inhibits e5.} Kh6 {[%emt 0:04:46]} 63. Kf3 {[%emt 0:00:39]} Qg7 {[%emt 0:01:18]} 64. Qe7 $2 {[%emt 0:03:24][%mdl 8192]} (64. Qe3 $15) 64... Qc3+ $19 {[%emt 0:01:31]} 65. Kf2 {[%emt 0:00:03]} Qd2+ {[%emt 0:00:17]} (65... Qxh3 66. Qf6+ Kh7 67. Qxf7+ Kh8 68. Qf8+ Kh7 69. Qf7+ Kh8 70. Qf8+ Kh7 71. Qf7+ $11) 66. Kf3 {[%emt 0:00:07]} Qd3+ {[%emt 0:00:12]} 67. Kf2 {[%emt 0:00:05]} Qf5 $2 {[%emt 0:00:38] Inhibits Qf6+.} ({Worse is} 67... Qxh3 68. Qf6+ Kh7 69. Qxf7+ Kh8 70. Qf8+ Kh7 71. Qf7+ Kh8 72. Qf8+ Kh7 73. Qf7+ $11) (67... Qd4+ $1 $19 68. Kf3 Qd5+ 69. Kg3 Kg6) 68. Kg3 $17 {[%emt 0:00:16]} Kg6 {[%emt 0:00:40][%cal Oe6e5]} 69. Qd8 {[%emt 0:00:10]} Qf6 {[%emt 0:00:20]} 70. Qa5 $2 {[%emt 0:00:13][%mdl 8192]} (70. Qd3+ $17 Kh6 71. Qe3) 70... Qe7 $2 {[%emt 0:01:03]} (70... e5 $1 $19 71. fxe5 h4+ 72. Kg2 Qg5+ 73. Kf3 Qg3+ 74. Ke2 Qxh3 75. Qb6+ Qe6 76. Qb1+ Kg5 77. Qc1+ Kh5) 71. Qa8 $15 {[%emt 0:00:54]} f6 {[%emt 0:02:09]} 72. Qc8 {[%emt 0:01:32]} ({Better is} 72. Qf3 $15) 72... e5 {[%emt 0:02:18]} (72... Qa3+ $17 73. Kh4 Qe3 74. Qe8+ Kf5 75. Qxh5+ Kxf4 76. Qg4+ (76. Qh6+ $2 Kf3 $19) 76... Ke5) 73. Qg8+ $11 {[%emt 0:02:31]} Kf5 {[%emt 0:01:08]} 74. Qc8+ {[%emt 0:01:43]} Qe6 {[%emt 0:00:52]} 75. Qc2+ $1 {[%emt 0:00:14]} e4 {[%emt 0:00:07]} 76. Qc5+ {[%emt 0:00:59]} Kg6 {[%emt 0:01:28]} 77. Kh4 $1 {[%emt 0:00:11]} Qf5 {[%emt 0:02:48][%cal Rf5f4]} 78. Qg1+ {[%emt 0:00:09]} Kh6 {[%emt 0:01:00]} 79. Qe3 {[%emt 0:00:03]} Qg6 {[%emt 0:03:45] aiming for ...Qg2.} 80. Qc5 {[%emt 0:00:20]} Qf7 {[%emt 0:00:55]} 81. Qf5 {[%emt 0:01:52]} Qg6 {[%emt 0:00:55]} (81... e3 $5 82. Qe4 Qa7 $11) 82. Qc5 {[%emt 0:00:27]} Qe8 {[%emt 0:01:36] ...e3 is the strong threat.} 83. Qd6 {[%emt 0:01:56]} Kg7 {[%emt 0:00:48] Hoping for ...e3.} 84. Qc7+ {[%emt 0:00:06]} Qf7 {[%emt 0:00:31]} 85. Qc3 {[%emt 0:01:01]} Qd7 {[%emt 0:00:53]} (85... Qe7 {feels hotter.} 86. Qg3+ Kf7 87. f5 Qe5) 86. Qg3+ $2 {[%emt 0:00:46][%mdl 8192] Black keeps a firm grip on the game.} (86. Qc5 $11 {and White stays safe.}) 86... Kf7 $1 $19 {[%emt 0:01:47]} 87. Kxh5 $2 {[%emt 0:01:08] [#]} (87. Qg1 {keeps fighting.}) 87... Qf5+ $1 {[%emt 0:00:10]} 88. Kh6 {[%emt 0:00:03]} e3 $1 {[%emt 0:00:33]} 89. Qg7+ {[%emt 0:00:13]} Ke6 {[%emt 0:00:37]} 90. Qg8+ {[%emt 0:00:04] [#]} Ke7 {[%emt 0:00:18]} (90... Kd7 $142 $1 91. Qc4 Qxh3+ 92. Kg6 Qg2+ 93. Kh5 Kd6 94. Qa6+ (94. Qb4+ $2 Ke6 $19) 94... Qc6) 91. Qg7+ $2 {[%emt 0:01:43]} (91. Qc4 Qxh3+ 92. Kg6) 91... Kd6 {[%emt 0:00:06]} 92. Qg3 {[%emt 0:00:20]} Qe4 {[%emt 0:00:41]} 93. Kg7 {[%emt 0:00:42]} f5 {[%emt 0:01:10] ( -> ...e2)} 94. h4 {[%emt 0:00:15]} e2 {[%emt 0:00:41]} 95. Qe1 {[%emt 0:00:14]} Ke6 {[%emt 0:00:25] Black mates.} 96. h5 {[%emt 0:00:17]} Qd4+ {[%emt 0:00:24]} 97. Kg6 {[%emt 0:00:05]} Qf6+ {[%emt 0:00:22]} 98. Kh7 {[%emt 0:00:07]} Kf7 {[%emt 0:00:16][%csl Gf7][%cal Rf6g7]} 99. Qg1 {[%emt 0:00:36]} e1=Q {[%emt 0:02:26]} 100. Qg6+ {[%emt 0:00:22]} Qxg6+ {[%emt 0:00:00]} 101. hxg6+ {[%emt 0:00:03]} Kf6 {[%emt 0:00:00]} 102. g7 {[%emt 0:00:04]} Qh4+ {[%emt 0:00:00]} 103. Kg8 {[%emt 0:00:05]} Qxf4 {[%emt 0:00:00]} 104. Kh8 {[%emt 0:00:05]} Qh6+ {[%emt 0:00:00]} 105. Kg8 {[%emt 0:00:03]} Qxg7# {[%emt 0:00:00] Weighted Error Value: White=0.21 (precise) /Black=0.26 (precise)} 0-1

[Event "2nd Serbia Open Masters 2022"]
[Site "Novi Sad"]
[Date "2022.06.29"]
[Round "2.32"]
[White "Nitish Belurkar"]
[Black "Arpita, Mukherjee"]
[Result "1/2-1/2"]
[ECO "B92"]
[WhiteElo "2452"]
[BlackElo "2275"]
[Annotator "TA"]
[PlyCount "76"]
[EventDate "2022.06.28"]
[EventType "swiss"]
[EventCountry "SRB"]
[SourceTitle "playchess.com"]
[Source "ChessBase"]
[SourceQuality "1"]
[TimeControl "40/5400+30:900+30"]

{[%evp 16,76,14,7,15,0,16,12,24,6,33,13,18,0,0,0,0,13,23,29,47,39,35,46,53,48,60,61,79,74,88,60,60,55,52,35,60,45,27,31,47,42,53,52,54,46,64,14,42,47,45,38,54,13,16,0,58,0,0,0,0,0,0]} 1. e4 {[%emt 0:00:04]} c5 {[%emt 0:03:04]} 2. Nf3 {[%emt 0:00:08]} d6 {[%emt 0:02:17]} 3. d4 {[%emt 0:00:09]} cxd4 {[%emt 0:00:11]} 4. Nxd4 {[%emt 0:00:05]} Nf6 {[%emt 0:00:07]} 5. Nc3 {[%emt 0:00:05]} a6 {[%emt 0:00:09]} 6. Be2 {[%emt 0:00:58]} e5 {[%emt 0:00:12]} 7. Nb3 {[%emt 0:00:06]} Be7 {[%emt 0:00:14]} 8. O-O {[%emt 0:00:06]} O-O {[%emt 0:00:09]} 9. Re1 {[%emt 0:00:06]} Be6 {[%emt 0:00:16] B92: Sicilian Najdorf: 6 Be2.} 10. Bf3 {[%emt 0:00:28]} Nbd7 {[%emt 0:00:18]} 11. a4 {[%emt 0:00:25]} Qb8 {[%emt 0:00:16]} 12. Qd3 {[%emt 0:02:22]} h6 {[%emt 0:01:03]} 13. Be3 {[%emt 0:07:57]} Rc8 {[%emt 0:01:09] [#]} 14. h3 $146 {[%emt 0:03:04]} ({Predecessor:} 14. Red1 b5 15. axb5 Bc4 16. Qd2 axb5 17. Rxa8 Qxa8 18. Ra1 Qb8 19. Na5 Be6 20. h3 {½-½ (33) Achilles,E (2445)-Filipchenko,V (2410) ICCF email 2016}) 14... Bc4 {[%emt 0:04:37]} 15. Qd2 {[%emt 0:00:09]} Bd8 {[%emt 0:09:20]} 16. Red1 {[%emt 0:01:23]} Bxb3 {[%emt 0:05:26]} 17. cxb3 {[%emt 0:00:08]} Ba5 {[%emt 0:00:09]} 18. Qxd6 {[%emt 0:04:47]} Qxd6 {[%emt 0:02:04]} 19. Rxd6 {[%emt 0:02:28]} Bxc3 {[%emt 0:00:06]} 20. bxc3 {[%emt 0:00:05]} Rxc3 {[%emt 0:00:06]} 21. b4 {[%emt 0:08:49]} Rac8 {[%emt 0:18:29]} 22. Rad1 {[%emt 0:04:21]} Nf8 {[%emt 0:06:58]} 23. Rd8 {[%emt 0:09:48] Threatens to win with Bc5. White is more active.} Kh7 $1 {[%emt 0:00:39]} 24. Rxc8 {[%emt 0:00:19]} Rxc8 {[%emt 0:00:07]} 25. Rd6 {[%emt 0:00:16]} Ne6 {[%emt 0:01:20]} 26. Be2 {[%emt 0:01:50]} Kg8 {[%emt 0:08:23]} 27. Rb6 {[%emt 0:13:37]} Rc7 {[%emt 0:00:18]} 28. a5 {[%emt 0:01:24]} Kf8 {[%emt 0:02:22]} ({Less strong is} 28... Nxe4 29. Bf3 Rc4 30. Rxb7 $18) 29. b5 {[%emt 0:05:00]} axb5 {[%emt 0:10:30]} 30. Rxb5 {[%emt 0:00:33]} Nd7 {[%emt 0:01:25]} 31. Rd5 {[%emt 0:04:01]} (31. Bg4 $14) 31... Ke7 {[%emt 0:00:48]} 32. Bb5 {[%emt 0:00:28]} f6 {[%emt 0:01:01]} 33. Kh2 {[%emt 0:01:53]} Ndf8 {[%emt 0:03:53]} 34. Bb6 {[%emt 0:02:12]} Rc2 {[%emt 0:00:46]} 35. Rd1 {[%emt 0:03:20]} Nd4 {[%emt 0:05:31]} (35... Rb2 $11 36. Bc4 Nd7) 36. Ba4 {[%emt 0:04:49]} (36. Bxd4 $14 exd4 37. Rxd4) 36... Rc4 $11 {[%emt 0:01:17] The position is equal.} 37. Ra1 {[%emt 0:00:24]} Nd7 {[%emt 0:14:00]} 38. Bxd7 Kxd7 {[%emt 0:00:30] Weighted Error Value: White=0.10 (very precise) /Black=0.11 (very precise)} 1/2-1/2

[Event "2nd Serbia Open Masters 2022"]
[Site "Novi Sad"]
[Date "2022.06.29"]
[Round "2.33"]
[White "Rozen, Eytan"]
[Black "Eren, Ataberk"]
[Result "0-1"]
[ECO "A11"]
[WhiteElo "2425"]
[BlackElo "2273"]
[Annotator "TA"]
[PlyCount "174"]
[EventDate "2022.06.28"]
[EventType "swiss"]
[EventCountry "SRB"]
[SourceTitle "playchess.com"]
[Source "ChessBase"]
[SourceQuality "1"]
[TimeControl "40/5400+30:900+30"]

{[%evp 11,174,0,8,5,11,7,8,9,5,0,10,12,0,0,12,0,5,0,0,-32,-27,-30,-29,-23,-23,-36,-25,-142,-120,-125,-135,-156,-168,-196,-187,-222,-238,-216,-225,-244,-221,-201,-222,-225,-216,-237,-214,-443,-455,-456,-412,-402,-422,-423,-415,-377,-350,-363,-374,-393,-385,-383,-372,-331,-308,-312,-317,-321,-320,-306,-307,-312,-318,-314,-311,-311,-311,-282,-274,-250,-222,-356,-302,-448,-448,-447,-447,-447,-447,-423,-423,-440,-439,-447,-447,-598,-592,-598,-598,-598,-594,-591,-587,-581,-575,-574,-524,-552,-543,-739,-731,-712,-693,-545,-482,-482,-484,-468,-417,-489,-441,-742,-706,-3282,-1988,-8730,-8730,-5408,-5408,-2036,-1717,-29949,-29953,-29952,-29956,-29959,-29956,-29954,-29947,-5512,-4177,-29971,-29971,-29972,-29973,-29972,-29973,-29978,-29974,-29971,-29971,-29970,-29971,-29969,-29970,-29964,-29969,-29982,-29983,-29983,-29984,-29985,-29986,-29986,-29987]} 1. Nf3 {[%emt 0:00:04]} d5 {[%emt 0:00:26]} 2. c4 {[%emt 0:00:56]} e6 {[%emt 0:01:55]} 3. e3 {[%emt 0:03:00]} Nf6 {[%emt 0:00:08]} 4. b3 {[%emt 0:00:16]} Nbd7 {[%emt 0:03:06]} 5. Bb2 {[%emt 0:00:16]} c6 {[%emt 0:00:28]} 6. Nc3 {[%emt 0:02:21]} Bd6 {[%emt 0:00:25]} 7. d4 {[%emt 0:00:57] A11: English Opening: 1...c6.} Qe7 {[%emt 0:01:11]} 8. Be2 {[%emt 0:03:27]} b6 {[%emt 0:00:14]} 9. O-O {[%emt 0:00:18] The position is equal.} O-O {[%emt 0:00:06]} 10. Rc1 {[%emt 0:01:26]} Bb7 {[%emt 0:00:24]} 11. Qc2 {[%emt 0:01:46]} Rac8 {[%emt 0:01:11]} 12. Rfd1 {[%emt 0:01:33]} Rfd8 {[%emt 0:00:43]} 13. Qb1 {[%emt 0:04:53]} h6 {[%emt 0:00:11]} 14. h3 {[%emt 0:00:24]} a6 {[%emt 0:03:18] [#]} 15. e4 $146 {[%emt 0:04:54]} ({Predecessor:} 15. Nd2 c5 16. cxd5 exd5 17. Bf3 cxd4 18. exd4 Nf8 19. Na4 Rxc1 20. Rxc1 Ne6 21. Nf1 {½-½ (54) Gritsak,O (2549)-Dreev,A (2654) Legnica 2013}) 15... dxe4 {[%emt 0:01:02]} 16. Nxe4 {[%emt 0:00:03]} Bf4 {[%emt 0:05:07]} 17. Rc3 {[%emt 0:02:50]} c5 {[%emt 0:01:34]} 18. Nxf6+ {[%emt 0:01:25]} Nxf6 {[%emt 0:03:17]} 19. g3 {[%emt 0:01:29] Black continues to play with concentration.} (19. dxc5 $11 Be4 20. Rxd8+ Rxd8 21. Qa1) 19... Be4 $17 {[%emt 0:22:15]} 20. Qa1 {[%emt 0:00:47] [#]} cxd4 $1 {[%emt 0:00:15] Black is more active.} 21. Rxd4 {[%emt 0:13:04]} Rxd4 {[%emt 0:00:20]} 22. Nxd4 {[%emt 0:00:02]} Bd2 {[%emt 0:00:34]} 23. Nf3 {[%emt 0:03:11]} Bxc3 {[%emt 0:01:19]} 24. Bxc3 {[%emt 0:00:02]} b5 {[%emt 0:06:14]} 25. Ne5 {[%emt 0:05:03]} bxc4 {[%emt 0:01:27]} 26. Nxc4 {[%emt 0:01:09]} Bb7 {[%emt 0:03:24]} 27. Be5 {[%emt 0:05:52]} Ne8 {[%emt 0:06:02]} 28. Bd4 {[%emt 0:04:45]} Qd8 {[%emt 0:01:03]} 29. Ne5 $2 {[%emt 0:02:12]} (29. Kh2) 29... Rc2 $19 {[%emt 0:00:59]} ({Don't blunder} 29... Qd5 $2 30. Bf3 Qb5 31. Bxb7 Qxb7 32. Nc4 $19) 30. Bh5 {[%emt 0:02:08]} g6 {[%emt 0:03:53]} 31. Bf3 {[%emt 0:00:48]} Bxf3 {[%emt 0:00:20]} 32. Nxf3 {[%emt 0:00:02]} Qd5 {[%emt 0:00:17]} 33. Qb1 {[%emt 0:00:50]} Rc8 {[%emt 0:01:13]} 34. Kg2 {[%emt 0:00:48]} Nd6 {[%emt 0:02:52]} 35. Qb2 {[%emt 0:00:19]} Nf5 {[%emt 0:00:47]} 36. Bf6 {[%emt 0:00:35]} Qe4 {[%emt 0:01:57]} 37. Qd2 {[%emt 0:00:31]} Qc2 {[%emt 0:03:25]} 38. Qf4 {[%emt 0:01:22]} g5 {[%emt 0:01:16]} (38... Qxa2 39. g4 g5 40. Qe5 Qxb3 41. gxf5 $15) 39. Qe5 {[%emt 0:00:23]} Qc6 {[%emt 0:00:31]} ({Worse is} 39... Qxa2 40. g4 Qxb3 41. gxf5 $17) 40. Qe2 {[%emt 0:00:00]} Nd6 {[%emt 0:00:00]} 41. Bd4 {[%emt 0:08:15]} Ne4 {[%emt 0:11:28]} 42. Kh2 {[%emt 0:06:39]} f6 {[%emt 0:01:46] Hoping for ...e5.} 43. Nd2 {[%emt 0:02:11]} Nxd2 {[%emt 0:00:46]} 44. Qxd2 {[%emt 0:00:02][%mdl 4096] Endgame KQR-KQB} e5 {[%emt 0:01:20]} 45. Be3 {[%emt 0:00:04]} Kg7 {[%emt 0:01:50]} 46. g4 {[%emt 0:01:08]} (46. b4 $142) 46... Rc7 {[%emt 0:03:48]} 47. Qd8 {[%emt 0:00:18]} (47. Qd3 {is a better defense.}) 47... Rd7 {[%emt 0:00:30]} 48. Qe8 {[%emt 0:00:05]} Qb7 {[%emt 0:00:58] [#] aiming for ...Rd1.} 49. Bc5 {[%emt 0:02:38]} Rd1 {[%emt 0:01:03]} 50. Qf8+ {[%emt 0:00:32]} Kh7 {[%emt 0:00:14]} 51. f3 {[%emt 0:00:13]} Qg7 {[%emt 0:01:18]} 52. Qa8 {[%emt 0:00:32]} Rd2+ {[%emt 0:02:00]} 53. Kg3 {[%emt 0:00:23]} Qc7 {[%emt 0:00:49]} 54. Qe4+ {[%emt 0:01:41]} Kg7 {[%emt 0:00:07]} 55. b4 {[%emt 0:02:05]} Rxa2 {[%emt 0:00:34]} 56. h4 {[%emt 0:01:34]} gxh4+ {[%emt 0:00:07]} 57. Kxh4 {[%emt 0:00:02]} Qf7 {[%emt 0:00:48]} 58. Be3 {[%emt 0:07:29]} Rb2 {[%emt 0:02:05][%cal Oa6a5] Threatens to win with ...a5!} 59. Kg3 {[%emt 0:07:28]} Rb3 {[%emt 0:00:41]} 60. Bd2 {[%emt 0:02:33]} Qd7 {[%emt 0:00:34]} 61. Be3 {[%emt 0:00:02]} Rd3 {[%emt 0:00:31]} 62. Bc5 {[%emt 0:00:48]} Rd5 {[%emt 0:02:37][%cal Oh6h5]} 63. Qc4 {[%emt 0:02:47]} Qe6 {[%emt 0:01:34]} 64. Be3 {[%emt 0:00:34]} Rd6 {[%emt 0:01:05]} 65. Qe4 {[%emt 0:03:34]} Rd7 {[%emt 0:00:28][%cal Oh6h5]} 66. Kh4 {[%emt 0:01:56]} (66. Qc2 $142) 66... Rf7 {[%emt 0:00:59]} 67. f4 {[%emt 0:00:08]} f5 {[%emt 0:02:58][%cal Bf6f5,Bf5f4][%mdl 32]} 68. Qxe5+ {[%emt 0:00:29]} Qxe5 {[%emt 0:00:08]} 69. fxe5 {[%emt 0:00:02] KR-KB} f4 {[%emt 0:01:12]} 70. Bc5 {[%emt 0:02:10]} Kg6 {[%emt 0:03:39] ( -> ...Rd7)} 71. e6 {[%emt 0:00:01] Inhibits Rd7.} Rf6 {[%emt 0:00:09]} 72. e7 {[%emt 0:00:29]} Re6 {[%emt 0:02:09]} 73. Bd6 {[%emt 0:00:03]} Re4 {[%emt 0:01:05]} 74. Bc5 {[%emt 0:02:12]} Re2 {[%emt 0:01:14][%cal Re2h2]} 75. Kh3 {[%emt 0:00:29]} Kg5 {[%emt 0:01:02]} 76. Bf2 {[%emt 0:00:02]} Kf6 {[%emt 0:00:43] Black mates.} 77. Bd4+ {[%emt 0:04:11]} Kxe7 {[%emt 0:00:19]} 78. Bg7 {[%emt 0:00:19]} Re6 {[%emt 0:00:24]} 79. Kg2 {[%emt 0:00:28]} Kf7 {[%emt 0:00:19]} 80. Bd4 {[%emt 0:00:55]} Re4 {[%emt 0:00:06]} 81. Bc5 {[%emt 0:00:17]} Rc4 {[%emt 0:01:31]} 82. Bd6 {[%emt 0:00:50]} Rd4 {[%emt 0:00:05]} 83. Bc5 {[%emt 0:00:08]} Rd3 {[%emt 0:00:06]} 84. Kf2 {[%emt 0:00:46]} Kg6 {[%emt 0:00:10]} 85. Be7 {[%emt 0:00:33]} Rg3 {[%emt 0:00:07]} 86. Bd6 {[%emt 0:00:20]} Rxg4 {[%emt 0:00:04]} 87. Kf3 {[%emt 0:00:18]} Kf5 {[%emt 0:00:01] Weighted Error Value: White=0.28 (precise) /Black=0.04 (flawless)} 0-1

[Event "2nd Serbia Open Masters 2022"]
[Site "Novi Sad"]
[Date "2022.06.29"]
[Round "2.34"]
[White "Milikow, Yoav"]
[Black "Jain Kashish Manoj"]
[Result "1/2-1/2"]
[ECO "E04"]
[WhiteElo "2410"]
[BlackElo "2271"]
[Annotator "TA"]
[PlyCount "47"]
[EventDate "2022.06.28"]
[EventType "swiss"]
[EventCountry "SRB"]
[SourceTitle "playchess.com"]
[Source "ChessBase"]
[SourceQuality "1"]
[TimeControl "40/5400+30:900+30"]

{[%evp 11,47,0,0,0,0,0,6,0,12,7,0,6,0,0,0,0,25,-22,-8,-62,-61,-81,-73,-81,-64,-139,-138,-127,-136,-148,-140,-131,-139,-182,-177,-225,-125,-118]} 1. d4 {[%emt 0:00:03]} d5 {[%emt 0:00:16]} 2. c4 {[%emt 0:00:05]} c6 {[%emt 0:00:06]} 3. Nf3 {[%emt 0:00:06]} Nf6 {[%emt 0:00:11]} 4. g3 {[%emt 0:00:07]} e6 {[%emt 0:00:08]} 5. Bg2 {[%emt 0:00:27]} dxc4 {[%emt 0:00:08]} 6. O-O {[%emt 0:00:46]} b5 {[%emt 0:00:38]} 7. b3 {[%emt 0:00:26] E04: Open Catalan: 5 Nf3.} cxb3 {[%emt 0:00:39]} 8. Qxb3 {[%emt 0:00:26]} Bb7 {[%emt 0:01:44]} 9. Rd1 {[%emt 0:00:33] The position is equal.} Be7 {[%emt 0:06:25]} 10. Ne5 {[%emt 0:02:03]} O-O {[%emt 0:06:50]} 11. Nc3 {[%emt 0:00:48] With the idea Nxb5.} Nd5 {[%emt 0:14:19]} 12. e4 {[%emt 0:01:13]} Nxc3 {[%emt 0:06:18]} 13. Qxc3 {[%emt 0:00:02] [#]} c5 $146 {[%emt 0:05:24]} ({Predecessor:} 13... Qc7 14. Bf4 Bd6 15. Rac1 a5 16. Nd3 Bxf4 17. Nxf4 b4 18. Qe3 Qe7 19. d5 exd5 20. exd5 Qxe3 21. fxe3 {½-½ (54) Reed,A (2094)-Farmer,M (1983) ICCF email 2018}) 14. Bb2 {[%emt 0:14:04]} (14. Bf4 $142) 14... Qc7 {[%emt 0:31:00]} 15. dxc5 {[%emt 0:11:01]} ({Better is} 15. Nd3 $11) 15... Bf6 $1 $15 {[%emt 0:02:52]} 16. f4 {[%emt 0:00:50]} Nc6 {[%emt 0:01:22]} 17. Rd6 {[%emt 0:00:43]} Rac8 {[%emt 0:05:47][%cal Ba8c8,Bc8c5,Bc5c2][%mdl 32]} 18. Rc1 {[%emt 0:06:20]} (18. Qe3 $15) 18... Nxe5 $17 {[%emt 0:11:38]} 19. fxe5 {[%emt 0:00:07]} Bg5 {[%emt 0:03:11]} 20. Re1 {[%emt 0:11:03]} Qxc5+ {[%emt 0:00:43]} 21. Qxc5 {[%emt 0:00:01]} Rxc5 {[%emt 0:00:02]} 22. Rd7 {[%emt 0:00:00]} Rc2 {[%emt 0:01:12]} 23. Bd4 {[%emt 0:02:05] [#]} (23. Rxb7 $142 Rxb2 24. Rxa7) 23... Bc6 {[%emt 0:00:34]} (23... Rd8 $1 $19 {[%cal Rd8d7]} 24. Rxb7 Rxd4) 24. Rxa7 {[%emt 0:00:48] Weighted Error Value: White=0.25 (precise) /Black=0.12 (very precise)} 1/2-1/2